bitfinex-derivatives/quotes_SOLF0:USTF0_20250311
["timestamp","ask_amount","ask_price","bid_price","bid_amount"]
[1741653046090,0.05993341,115.24,115.22,0.05589694]
[1741653046478,94.44166295,115.25,115.19,50.22030841]
[1741653046783,0.06150871,115.24,115.22,0.06356328]
[1741653048276,10.46150871,115.24,115.22,0.06356328]
[1741653048481,10.46150871,115.24,115.17,1.73656334]
[1741653048687,50.22030841,115.23,115.17,1.73656334]
[1741653048886,94.44166295,115.25,115.21,50.22030841]
[1741653049182,94.44166295,115.25,115.23,50.22030841]
[1741653049621,4.0917,115.36,115.24,50.22030841]
[1741653049824,4.0917,115.36,115.28,50.22030841]
[1741653049825,10.4,115.36,115.28,50.22030841]
[1741653050004,94.30700737,115.27,115.25,1.73535791]
[1741653050497,94.30700737,115.27,115.25,1.79541222]
[1741653050699,104.7691293,115.27,115.25,1.79541222]
[1741653051004,94.3691293,115.27,115.25,1.79541222]
[1741653051205,94.3691293,115.27,115.25,54.61572063]
[1741653051408,365.0820285,115.37,115.25,52.01572063]
[1741653051611,50.22030841,115.34,115.25,1.79541222]
[1741653051804,50.22030841,115.32,115.25,1.73535791]
[1741653052002,50.22030841,115.3,115.25,1.73535791]
[1741653052204,295.596041,115.27,115.17,50.22030841]
[1741653052604,0.06641937,115.23,115.21,0.06119775]
[1741653053013,0.06641937,115.23,115.21,50.28150616]
[1741653053215,0.06641937,115.23,115.21,0.06119775]
[1741653054022,0.06641937,115.23,115.21,50.28150616]
[1741653055108,142.08896336,115.26,115.21,50.28150616]
[1741653055109,142.08896336,115.26,115.21,52.88150616]
[1741653055302,142.08896336,115.26,115.22,50.22030841]
[1741653055496,142.08896336,115.27,115.22,50.22030841]
[1741653055902,142.08896336,115.27,115.24,58.90100841]
[1741653056098,142.14748281,115.27,115.26,50.22030841]
[1741653056502,378.45828679,115.3,115.27,8.6781]
[1741653056703,378.45828679,115.3,115.28,50.22030841]
[1741653057299,147.17963301,115.38,115.26,50.22030841]
[1741653057597,371.3903285,115.37,115.27,8.678]
[1741653057791,371.3903285,115.37,115.26,50.22030841]
[1741653057987,371.3903285,115.37,115.25,286.32]
[1741653058187,371.3903285,115.37,115.28,50.22030841]
[1741653058384,0.06076838,115.33,115.3,0.05554768]
[1741653058795,0.06076838,115.33,115.28,50.22030841]
[1741653058996,0.06076838,115.33,115.3,0.063347]
[1741653059294,360.9903285,115.37,115.3,0.063347]
[1741653059493,352.3681285,115.37,115.31,50.22030841]
[1741653060494,352.3681285,115.37,115.33,50.22030841]
[1741653060688,352.3681285,115.37,115.32,1.73430454]
[1741653060889,0.06395164,115.35,115.33,0.0571649]
[1741653061290,0.06395164,115.35,115.25,286.32]
[1741653061291,50.22030841,115.34,115.25,286.32]
[1741653061597,54.49790841,115.34,115.25,286.32]
[1741653061789,8.6768,115.3,115.25,286.32]
[1741653061996,50.22030841,115.32,115.21,50.22030841]
[1741653062402,8.6765,115.3,115.24,8.6807]
[1741653062608,0.06656307,115.28,115.25,50.27634438]
[1741653062892,0.06656307,115.28,115.25,0.05603597]
[1741653063102,10.46656307,115.28,115.25,0.05603597]
[1741653063297,0.06656307,115.28,115.25,0.05603597]
[1741653063698,0.06656307,115.28,115.25,50.27634438]
[1741653063901,0.06656307,115.28,115.25,58.95614438]
[1741653064100,0.06656307,115.28,115.27,50.22030841]
[1741653064404,17.2719,115.36,115.29,8.6768]
[1741653064602,19.0001,115.36,115.27,286.16]
[1741653064796,50.22030841,115.35,115.27,286.16]
[1741653064990,54.52050841,115.35,115.27,286.16]
[1741653065197,14.7002,115.35,115.27,286.16]
[1741653065398,0.06143461,115.32,115.3,0.06345473]
[1741653065794,10.46143461,115.32,115.3,0.06345473]
[1741653066398,0.06143461,115.32,115.3,0.06345473]
[1741653067203,10.46143461,115.32,115.27,286.16]
[1741653067404,10.46143461,115.32,115.28,50.22030841]
[1741653067705,0.06143461,115.32,115.28,50.22030841]
[1741653067999,0.06143461,115.32,115.27,286.16]
[1741653068000,10.46143461,115.32,115.27,286.16]
[1741653068301,10.46143461,115.32,115.28,0.05784115]
[1741653068501,0.06143461,115.32,115.29,50.22030841]
[1741653068694,0.06143461,115.32,115.31,50.22030841]
[1741653068895,0.06143461,115.32,115.29,50.22030841]
[1741653069100,0.06143461,115.32,115.3,0.06255118]
[1741653069101,10.46143461,115.32,115.3,0.06255118]
[1741653069306,10.46143461,115.32,115.25,50.22030841]
[1741653069493,10.46143461,115.32,115.23,50.22030841]
[1741653069695,10.4,115.32,115.23,50.22030841]
[1741653069897,60.62030841,115.32,115.22,286.16]
[1741653070092,50.22030841,115.3,115.2,50.22030841]
[1741653070298,50.22030841,115.28,115.16,50.22030841]
[1741653070607,50.27826545,115.26,115.16,50.22030841]
[1741653070803,4.4489,115.27,115.18,50.22030841]
[1741653071005,14.8489,115.27,115.18,50.22030841]
[1741653071501,14.8489,115.27,115.2,50.22030841]
[1741653071707,0.06054794,115.24,115.22,50.22030841]
[1741653071899,0.06054794,115.24,115.21,0.0627133]
[1741653072102,4.3269,115.29,115.22,50.22030841]
[1741653072399,4.3269,115.29,115.2,336.38030841]
[1741653072400,14.7269,115.29,115.2,336.38030841]
[1741653072799,14.7269,115.29,115.22,50.22030841]
[1741653073011,14.7269,115.29,115.2,50.22030841]
[1741653073201,64.94720841,115.29,115.2,50.22030841]
[1741653073402,0.05517738,115.26,115.23,0.05999517]
[1741653073803,10.45517738,115.26,115.23,0.05999517]
[1741653074204,50.22030841,115.24,115.1,286.18]
[1741653074403,8.6824,115.22,115.13,50.22030841]
[1741653074599,4.0839,115.23,115.13,50.22030841]
[1741653074900,14.4839,115.23,115.13,50.22030841]
[1741653075208,50.22030841,115.22,115.17,0.05950165]
[1741653075501,8.6877,115.15,115.1,50.22030841]
[1741653075702,50.22030841,115.22,115.05,235.82777144]
[1741653075901,4.4427,115.19,115.11,50.22030841]
[1741653076101,4.4427,115.19,115.09,50.22030841]
[1741653076404,50.22030841,115.18,115.07,50.22030841]
[1741653076604,4.4427,115.19,115.11,50.22030841]
[1741653076809,0.05677486,115.14,115.11,50.27704412]
[1741653077008,0.05677486,115.14,115.11,50.22030841]
[1741653077203,0.05677486,115.14,115.11,0.06647625]
[1741653077609,0.05677486,115.14,115.08,50.22030841]
[1741653078201,0.05677486,115.14,115.1,50.22030841]
[1741653078710,4.4427,115.19,115.12,50.22030841]
[1741653078904,4.4427,115.19,115.17,50.22030841]
[1741653079100,4.3857,115.24,115.17,50.22030841]
[1741653079902,4.2304,115.26,115.14,50.22030841]
[1741653079903,4.2304,115.26,115.21,50.22030841]
[1741653080107,0.06460146,115.22,115.19,0.05605832]
[1741653080405,4.3857,115.25,115.18,50.22030841]
[1741653080808,0.06236922,115.22,115.19,0.05906647]
[1741653081111,0.06236922,115.22,115.21,8.6831]
[1741653081307,0.06236922,115.22,115.19,0.05906647]
[1741653081513,4.2304,115.26,115.2,50.22030841]
[1741653082111,4.2304,115.26,115.21,8.683]
[1741653082411,4.2304,115.26,115.2,50.22030841]
[1741653082412,4.2304,115.26,115.24,50.22030841]
[1741653082637,4.3154,115.3,115.25,8.6799]
[1741653082811,4.3154,115.3,115.26,50.22030841]
[1741653083107,4.3154,115.3,115.27,8.6779]
[1741653083316,8.4863,115.34,115.28,50.22030841]
[1741653083807,8.4863,115.34,115.3,50.22030841]
[1741653084014,4.3154,115.37,115.32,50.22030841]
[1741653084408,96.9593246,115.38,115.34,50.22030841]
[1741653085008,0.05513641,115.37,115.35,0.05970654]
[1741653085306,0.05513641,115.37,115.3,50.22030841]
[1741653085511,4.45743641,115.37,115.28,336.58030841]
[1741653085706,4.45743641,115.37,115.3,50.22030841]
[1741653086307,4.4023,115.37,115.32,50.22030841]
[1741653086511,4.4023,115.37,115.3,50.22030841]
[1741653087005,4.4023,115.37,115.32,50.22030841]
[1741653087207,96.9593246,115.38,115.34,50.22030841]
[1741653087403,96.9593246,115.38,115.36,50.22030841]
[1741653087601,57.21171175,115.38,115.37,8.671]
[1741653087801,4.2319,115.48,115.37,50.22030841]
[1741653088106,4.2319,115.48,115.42,50.22030841]
[1741653088308,4.2319,115.48,115.4,50.22030841]
[1741653088504,4.2319,115.48,115.42,8.667]
[1741653088701,0.06510441,115.45,115.44,50.22030841]
[1741653088907,0.06510441,115.45,115.43,0.05997833]
[1741653090103,50.22030841,115.46,115.4,235.82777144]
[1741653090507,54.45220841,115.48,115.38,235.82777144]
[1741653090707,4.2319,115.48,115.42,50.22030841]
[1741653090915,4.2319,115.48,115.44,50.22030841]
[1741653091309,4.2319,115.48,115.45,8.6645]
[1741653091509,0.05540995,115.47,115.46,50.22030841]
[1741653091713,9.95e-06,115.47,115.46,58.88440841]
[1741653091909,4.1256,115.55,115.46,52.82030841]
[1741653092110,4.1256,115.55,115.48,50.22030841]
[1741653092309,4.1256,115.55,115.46,50.22030841]
[1741653092507,54.34590841,115.55,115.44,336.30030841]
[1741653092808,4.1256,115.55,115.46,50.22030841]
[1741653093002,0.06112105,115.51,115.48,8.71776503]
[1741653093208,0.06112105,115.51,115.48,0.05556503]
[1741653093413,0.06112105,115.51,115.47,8.6633]
[1741653093614,0.06112105,115.51,115.48,0.05630567]
[1741653093809,0.06112105,115.51,115.48,50.27661408]
[1741653094013,0.06112105,115.51,115.48,0.05630567]
[1741653095221,0.06112105,115.51,115.49,8.6619]
[1741653095615,8.72172105,115.51,115.48,0.05630567]
[1741653095918,0.06112105,115.51,115.48,0.05630567]
[1741653096319,0.06112105,115.51,115.44,294.7455]
[1741653096519,0.06112105,115.51,115.45,50.22030841]
[1741653096728,50.22030841,115.52,115.44,286.08]
[1741653096926,4.1728,115.53,115.44,336.30030841]
[1741653097326,8.6605,115.52,115.44,336.30030841]
[1741653097528,0.0644268,115.5,115.47,0.06623432]
[1741653099129,0.0644268,115.5,115.47,50.28654273]
[1741653099334,2.68e-05,115.5,115.49,50.22030841]
[1741653099528,2.68e-05,115.5,115.49,58.88230841]
[1741653099829,2.68e-05,115.5,115.47,50.28654273]
[1741653100031,2.68e-05,115.5,115.48,8.6622]
[1741653100334,2.68e-05,115.5,115.47,0.06623432]
[1741653101134,2.68e-05,115.5,115.49,50.22030841]
[1741653101334,2.68e-05,115.5,115.47,50.28654273]
[1741653101534,2.68e-05,115.5,115.47,0.06623432]
[1741653101839,4.1256,115.55,115.49,50.22030841]
[1741653102031,4.1256,115.55,115.51,50.22030841]
[1741653102436,4.397,115.59,115.51,50.22030841]
[1741653102833,4.397,115.59,115.53,50.22030841]
[1741653103034,8.6095,115.6,115.58,8.6553]
[1741653103336,8.6095,115.6,115.55,50.22030841]
[1741653103528,4.1497,115.6,115.57,8.6555]
[1741653103731,4.212395,115.6,115.58,0.06065204]
[1741653103935,0.062695,115.6,115.58,0.06065204]
[1741653104229,9.5e-05,115.6,115.59,8.6545]
[1741653106033,4.3376,115.67,115.63,8.6512]
[1741653106339,12.8027,115.69,115.63,8.6512]
[1741653106742,4.1556,115.69,115.61,50.22030841]
[1741653106941,12.8026,115.69,115.61,50.22030841]
[1741653107141,4.1556,115.69,115.61,50.22030841]
[1741653107342,0.05707974,115.66,115.64,0.06483606]
[1741653108138,0.05707974,115.66,115.64,8.71533606]
[1741653108338,0.05707974,115.66,115.64,0.06483606]
[1741653109042,0.05707974,115.66,115.64,8.71543606]
[1741653109341,0.05707974,115.66,115.64,0.06483606]
[1741653110037,0.05707974,115.66,115.65,8.65]
[1741653110737,7.974e-05,115.66,115.65,8.65]
[1741653111447,7.974e-05,115.66,115.65,58.87030841]
[1741653112344,8.6466,115.7,115.64,285.56483606]
[1741653112544,50.22030841,115.74,115.64,285.56483606]
[1741653112749,50.22030841,115.74,115.64,285.5]
[1741653113244,50.22030841,115.72,115.64,285.5]
[1741653113445,0.05728492,115.7,115.68,0.06559263]
[1741653113642,0.05728492,115.7,115.64,285.5]
[1741653113843,8.64858492,115.7,115.64,285.5]
[1741653114945,8.64858492,115.7,115.66,0.06639863]
[1741653115446,0.05728492,115.7,115.68,8.6472]
[1741653115649,0.05728492,115.7,115.66,0.06639863]
[1741653116647,0.05728492,115.7,115.68,8.6477]
[1741653117051,0.05728492,115.7,115.66,0.06639863]
[1741653117650,8.70398492,115.7,115.66,8.71549863]
[1741653117853,0.05728492,115.7,115.66,0.06639863]
[1741653118847,0.05728492,115.7,115.64,294.1503]
[1741653119047,0.05728492,115.7,115.64,285.5]
[1741653119246,8.6495,115.66,115.59,50.22030841]
[1741653119449,54.36759333,115.7,115.57,335.54030841]
[1741653119647,54.31030841,115.7,115.57,335.54030841]
[1741653120154,0.06482821,115.65,115.62,0.06571423]
[1741653120649,0.06482821,115.65,115.57,335.54030841]
[1741653121052,50.22030841,115.68,115.57,335.54030841]
[1741653121451,4.3081,115.69,115.58,8.655]
[1741653121452,50.22030841,115.66,115.58,8.655]
[1741653121652,50.22030841,115.66,115.57,285.32]
[1741653121853,0.06236474,115.64,115.61,0.06402698]
[1741653123175,50.28267315,115.64,115.53,50.22030841]
[1741653123370,198.3081,115.63,115.53,50.22030841]
[1741653123575,198.3081,115.63,115.56,8.6561]
[1741653123763,54.36410841,115.62,115.51,50.22030841]
[1741653124172,50.22030841,115.6,115.51,50.22030841]
[1741653124365,50.22030841,115.6,115.55,0.06047885]
[1741653124678,50.28538833,115.58,115.48,285.36]
[1741653124871,50.22030841,115.56,115.42,285.36]
[1741653125069,50.22030841,115.56,115.46,8.6637]
[1741653125270,198.4126,115.57,115.47,50.22030841]
[1741653125475,50.22030841,115.56,115.45,50.22030841]
[1741653125676,0.06616837,115.53,115.51,0.06415119]
[1741653126582,0.06616837,115.53,115.45,50.22030841]
[1741653126771,8.6615,115.5,115.44,8.6652]
[1741653127363,194.0,115.52,115.43,50.22030841]
[1741653127559,50.22030841,115.51,115.41,50.22030841]
[1741653127760,54.59040841,115.51,115.41,50.22030841]
[1741653127956,0.06499085,115.49,115.46,0.06066593]
[1741653128157,9.085e-05,115.49,115.47,50.22030841]
[1741653128361,4.3701,115.59,115.48,50.22030841]
[1741653128567,4.3701,115.59,115.55,50.22030841]
[1741653128767,244.22030841,115.65,115.55,50.22030841]
[1741653128957,13.0209,115.64,115.58,8.6546]
[1741653129162,4.3701,115.64,115.53,50.22030841]
[1741653129464,0.0636462,115.62,115.6,0.05527854]
[1741653129659,50.22030841,115.61,115.52,285.42]
[1741653129961,50.22030841,115.57,115.47,50.22030841]
[1741653130162,50.22030841,115.57,115.47,8.6634]
[1741653130163,8.659,115.53,115.47,8.6634]
[1741653130372,8.2272,115.56,115.49,50.22030841]
[1741653130564,0.05804844,115.54,115.51,0.0642118]
[1741653130865,0.05804844,115.54,115.51,50.28452021]
[1741653131163,0.05804844,115.54,115.51,0.0642118]
[1741653132266,0.05804844,115.54,115.51,50.28452021]
[1741653132463,0.05804844,115.54,115.53,50.22030841]
[1741653132660,0.05804844,115.54,115.51,50.28452021]
[1741653133559,0.05804844,115.54,115.52,8.6597]
[1741653133760,0.05804844,115.54,115.51,0.0642118]
[1741653134271,8.71634844,115.54,115.51,0.0642118]
[1741653134473,0.05804844,115.54,115.51,0.0642118]
[1741653135273,8.6603,115.52,115.47,8.663]
[1741653135468,0.05804844,115.54,115.46,285.42]
[1741653135672,194.0,115.55,115.49,50.22030841]
[1741653135971,194.0,115.55,115.47,50.22030841]
[1741653136172,244.22030841,115.55,115.46,285.42]
[1741653136372,50.22030841,115.53,115.43,50.22030841]
[1741653136562,0.06610304,115.52,115.43,50.22030841]
[1741653136762,76.92,115.53,115.43,50.22030841]
[1741653136966,8.6636,115.47,115.41,50.22030841]
[1741653137169,244.22030841,115.52,115.43,50.22030841]
[1741653137370,202.6598,115.52,115.45,50.22030841]
[1741653137570,194.0,115.52,115.45,50.22030841]
[1741653137877,0.0606598,115.5,115.47,0.05850131]
[1741653138267,0.0606598,115.5,115.41,50.22030841]
[1741653138467,50.22030841,115.49,115.4,285.5]
[1741653138671,4.3861,115.48,115.4,285.5]
[1741653138866,4.3861,115.48,115.4,335.72030841]
[1741653139570,0.05768493,115.45,115.4,285.5]
[1741653139775,0.05768493,115.45,115.38,50.22030841]
[1741653139975,0.05768493,115.45,115.36,50.22030841]
[1741653140273,76.26,115.47,115.38,50.22030841]
[1741653140274,0.05976675,115.42,115.38,50.22030841]
[1741653140570,4.414,115.46,115.4,50.22030841]
[1741653140770,4.3861,115.48,115.43,50.22030841]
[1741653141073,4.3861,115.48,115.42,8.6667]
[1741653141272,4.3861,115.48,115.41,50.22030841]
[1741653141573,4.3861,115.48,115.44,8.6653]
[1741653141774,4.3861,115.48,115.41,50.22030841]
[1741653141966,0.05993917,115.47,115.39,50.22030841]
[1741653142169,0.05993917,115.47,115.45,8.6648]
[1741653142473,198.3861,115.48,115.39,50.22030841]
[1741653143372,0.06524473,115.45,115.42,0.02372517]
[1741653144665,8.73034473,115.45,115.39,8.6689]
[1741653144871,8.73034473,115.45,115.21,1748.6313]
[1741653144872,50.22030841,115.41,115.23,17.3626]
[1741653145073,84.0337,115.4,115.29,50.22030841]
[1741653145377,50.22030841,115.36,115.22,235.82777144]
[1741653145591,50.22030841,115.32,115.22,286.04807985]
[1741653145800,50.22030841,115.32,115.25,8.6794]
[1741653146008,0.05975474,115.28,115.22,286.04807985]
[1741653146597,0.05975474,115.28,115.22,50.22030841]
[1741653146898,0.05975474,115.28,115.2,50.22030841]
[1741653147196,50.22030841,115.3,115.2,50.22030841]
[1741653147197,75.34,115.27,115.2,50.22030841]
[1741653147395,0.06408379,115.25,115.2,58.90400841]
[1741653147595,0.06408379,115.25,115.18,50.22030841]
[1741653147785,75.34408379,115.25,115.16,50.22030841]
[1741653147984,75.34408379,115.25,115.17,8.686]
[1741653147985,75.28,115.25,115.17,8.686]
[1741653148196,0.06217639,115.22,115.12,235.82777144]
[1741653148391,0.06217639,115.22,115.14,50.22030841]
[1741653148595,75.28,115.25,115.14,50.22030841]
[1741653148795,0.06392067,115.19,115.15,50.22030841]
[1741653149100,8.6786,115.27,115.17,58.90560841]
[1741653149303,125.80030841,115.28,115.17,50.22030841]
[1741653149498,125.80030841,115.28,115.15,50.22030841]
[1741653149697,8.6801,115.25,115.17,50.22030841]
[1741653149904,8.6801,115.25,115.15,58.90780841]
[1741653150202,8.6801,115.25,115.15,50.22030841]
[1741653150397,0.05746589,115.21,115.19,0.05776773]
[1741653150614,0.05746589,115.21,115.2,50.22030841]
[1741653150794,4.203,115.26,115.2,50.22030841]
[1741653150996,0.05979016,115.21,115.2,50.22030841]
[1741653151199,4.203,115.26,115.18,50.22030841]
[1741653151402,0.05602781,115.22,115.19,0.06392067]
[1741653151602,0.05602781,115.22,115.2,50.22030841]
[1741653152004,0.05602781,115.22,115.2,50.27839904]
[1741653152612,0.05602781,115.22,115.2,0.05809063]
[1741653154096,0.05602781,115.22,115.21,58.90340841]
[1741653154302,0.05602781,115.22,115.21,50.22030841]
[1741653154698,0.05602781,115.22,115.21,58.90340841]
[1741653155014,198.4414,115.3,115.21,58.90340841]
[1741653155015,83.0937,115.3,115.21,52.82030841]
[1741653155201,4.4323,115.3,115.24,50.22030841]
[1741653155507,4.4323,115.3,115.22,50.22030841]
[1741653156100,0.06339615,115.27,115.25,0.06456779]
[1741653156402,4.3769,115.29,115.2,50.22030841]
[1741653156785,0.05763594,115.27,115.25,0.06254619]
[1741653157489,0.05763594,115.27,115.18,50.22030841]
[1741653157883,73.44,115.28,115.2,50.22030841]
[1741653158081,8.6791,115.27,115.21,8.683]
[1741653158278,198.3769,115.29,115.2,50.22030841]
[1741653158480,198.3769,115.29,115.22,50.22030841]
[1741653158684,198.3769,115.29,115.2,50.22030841]
[1741653158886,0.05997358,115.26,115.23,0.05740229]
[1741653159188,0.0634227,115.26,115.23,0.05740229]
[1741653159583,8.6801,115.25,115.23,0.05740229]
[1741653159780,0.0634227,115.26,115.23,0.05740229]
[1741653159986,73.0234227,115.26,115.15,52.23140841]
[1741653160283,72.96,115.26,115.15,52.23140841]
[1741653160783,72.96,115.26,115.16,50.22030841]
[1741653160984,72.96,115.26,115.18,50.22030841]
[1741653161184,72.96,115.26,115.2,50.22030841]
[1741653161389,4.3769,115.29,115.2,50.22030841]
[1741653161977,8.6798,115.26,115.21,8.6828]
[1741653162184,4.3769,115.29,115.2,50.22030841]
[1741653162389,4.3769,115.29,115.19,8.6843]
[1741653162591,0.06113183,115.26,115.18,50.22030841]
[1741653162985,4.3769,115.29,115.2,8.6835]
[1741653163185,0.05984025,115.23,115.2,50.22030841]
[1741653163392,4.3769,115.29,115.2,50.22030841]
[1741653163586,0.05499797,115.23,115.2,58.90380841]
[1741653163789,0.05499797,115.23,115.18,50.22030841]
[1741653163995,50.22030841,115.28,115.18,50.22030841]
[1741653164189,0.06096386,115.22,115.18,50.22030841]
[1741653164691,0.06096386,115.22,115.19,8.6841]
[1741653164892,0.06096386,115.22,115.18,50.22030841]
[1741653165194,0.06096386,115.22,115.19,8.6841]
[1741653165386,0.06096386,115.22,115.16,50.22030841]
[1741653165690,71.66,115.24,115.16,50.22030841]
[1741653166093,0.06362884,115.2,115.16,50.22030841]
[1741653166891,0.06362884,115.2,115.15,336.46030841]
[1741653167094,0.06362884,115.2,115.13,50.22030841]
[1741653167493,4.3678,115.22,115.13,50.22030841]
[1741653167694,0.05719075,115.18,115.13,50.22030841]
[1741653168189,0.05719075,115.18,115.15,8.6871]
[1741653168690,0.05719075,115.18,115.13,50.22030841]
[1741653169098,0.05719075,115.18,115.11,50.22030841]
[1741653169491,4.3678,115.22,115.13,50.22030841]
[1741653169689,0.06462951,115.16,115.13,50.22030841]
[1741653169889,4.3678,115.22,115.13,50.22030841]
[1741653170093,0.05535804,115.16,115.13,50.22030841]
[1741653170295,54.58810841,115.22,115.11,50.22030841]
[1741653170598,0.0604257,115.16,115.11,50.22030841]
[1741653171195,0.0604257,115.16,115.09,50.22030841]
[1741653171494,8.6862,115.17,115.03,290.4489]
[1741653171796,0.06080496,115.11,115.09,50.22030841]
[1741653172185,4.231,115.15,115.09,50.22030841]
[1741653172387,0.06113263,115.11,115.09,50.22030841]
[1741653173795,4.231,115.15,115.09,50.22030841]
[1741653173995,4.231,115.15,115.11,50.22030841]
[1741653174904,4.231,115.15,115.09,50.22030841]
[1741653175101,0.05903931,115.14,115.12,0.06113263]
[1741653176001,0.05903931,115.14,115.13,50.22030841]
[1741653176194,8.5602,115.2,115.13,50.22030841]
[1741653176396,4.3808,115.2,115.16,50.22030841]
[1741653176606,8.6825,115.22,115.17,8.6855]
[1741653176794,4.4298,115.23,115.16,50.22030841]
[1741653176996,4.4298,115.23,115.14,50.22030841]
[1741653177197,8.6844,115.2,115.15,8.6871]
[1741653177593,0.06636813,115.2,115.17,0.06516752]
[1741653178698,8.75036813,115.2,115.17,0.06516752]
[1741653179003,0.06636813,115.2,115.17,0.06516752]
[1741653182405,8.5602,115.24,115.18,50.22030841]
[1741653182606,8.6817,115.23,115.19,8.6841]
[1741653182917,8.5602,115.24,115.16,50.22030841]
[1741653183106,8.5602,115.24,115.05,286.46]
[1741653183107,58.78050841,115.24,115.05,286.46]
[1741653183304,50.22030841,115.22,115.12,50.22030841]
[1741653183601,8.6877,115.15,115.1,2.1383]
[1741653183805,0.05621549,115.18,115.06,295.5238143]
[1741653184111,8.6905,115.12,115.06,296.9230143]
[1741653184305,202.8099,115.17,115.09,286.04807985]
[1741653184811,6.62483815,115.16,115.09,235.82777144]
[1741653185114,8.691,115.11,115.09,235.82777144]
[1741653185311,68.3,115.13,115.09,235.82777144]
[1741653185508,72.7029,115.13,115.09,115.56832741]
[1741653185814,4.4029,115.13,115.09,115.56832741]
[1741653186011,72.5629,115.13,115.09,115.56832741]
[1741653186216,0.05713638,115.12,115.1,9.187e-05]
[1741653186408,68.17713638,115.12,115.1,9.187e-05]
[1741653186714,6.63924462,115.11,115.1,9.187e-05]
[1741653186907,0.05713638,115.12,115.1,50.22040028]
[1741653187307,0.05713638,115.12,115.1,9.187e-05]
[1741653187508,0.05713638,115.12,115.1,50.22040028]
[1741653187713,0.05713638,115.12,115.1,9.187e-05]
[1741653187916,8.6906,115.11,115.1,9.187e-05]
[1741653188308,0.05713638,115.12,115.1,50.22040028]
[1741653188702,0.05713638,115.12,115.1,9.187e-05]
[1741653188907,8.6906,115.11,115.1,9.187e-05]
[1741653189213,76.9706,115.11,115.1,9.187e-05]
[1741653189415,13.113,115.11,115.1,9.187e-05]
[1741653189808,81.313,115.11,115.1,9.187e-05]
[1741653190012,0.05713638,115.12,115.1,9.187e-05]
[1741653190404,8.6906,115.11,115.1,9.187e-05]
[1741653191611,79.1706,115.11,115.1,9.187e-05]
[1741653191815,83.4597,115.11,115.1,9.187e-05]
[1741653192115,12.9797,115.11,115.1,9.187e-05]
[1741653192510,80.9197,115.11,115.1,9.187e-05]
[1741653192707,83.5197,115.11,115.1,9.187e-05]
[1741653192913,15.5797,115.11,115.1,9.187e-05]
[1741653193115,83.4597,115.11,115.1,9.187e-05]
[1741653196212,83.4597,115.11,114.96,50.22030841]
[1741653196213,74.0691,115.11,114.96,50.22030841]
[1741653196409,0.05713638,115.12,115.1,50.22030841]
[1741653196713,2.6,115.12,114.97,295.3022]
[1741653196913,8.5192,115.13,115.05,50.22030841]
[1741653197113,50.22030841,115.11,115.01,50.22030841]
[1741653197322,100.44061682,115.02,114.8,132.08492198]
[1741653197513,50.22030841,114.86,114.8,97.63192198]
[1741653197709,50.22030841,114.84,114.8,45.90192198]
[1741653197910,50.22030841,114.84,114.8,17.94632198]
[1741653197911,75.28,114.83,114.8,17.94632198]
[1741653198215,75.28,114.83,114.72,523.64209273]
[1741653198216,75.28,114.83,114.81,17.94632198]
[1741653198415,0.05619021,114.84,114.75,355.06633824]
[1741653198812,50.22030841,114.82,114.75,355.06633824]
[1741653199016,0.06607678,114.82,114.75,355.06633824]
[1741653199213,0.06607678,114.82,114.8,86.95996779]
[1741653199617,0.06607678,114.82,114.76,4.2453]
[1741653199915,50.22030841,114.94,114.81,137.1802762]
[1741653200113,50.22030841,115.0,114.92,86.95996779]
[1741653200314,286.96,115.02,114.9,50.22030841]
[1741653200518,50.22030841,115.01,114.92,86.95996779]
[1741653200718,50.22030841,115.01,114.94,86.95996779]
[1741653201214,50.22030841,114.96,114.72,241.22030841]
[1741653201422,50.22030841,114.88,114.79,86.95996779]
[1741653201617,50.22030841,114.86,114.78,8.5949]
[1741653201821,50.22030841,114.84,114.77,1.74261566]
[1741653202020,50.22030841,114.84,114.72,50.22030841]
[1741653202021,50.22030841,114.82,114.72,50.22030841]
[1741653202225,141.8475376,114.81,114.75,86.95996779]
[1741653202436,50.22030841,114.8,114.75,86.95996779]
[1741653202687,50.22030841,114.8,114.67,59.12910841]
[1741653202688,0.05949465,114.78,114.67,59.12910841]
[1741653202818,0.05949465,114.78,114.73,50.22030841]
[1741653203025,141.8475376,114.81,114.77,86.95996779]
[1741653203224,50.22030841,114.78,114.67,8.9088]
[1741653203420,50.22030841,114.76,114.68,86.95996779]
[1741653203622,8.7195,114.73,114.54,50.22030841]
[1741653203818,0.062276,114.73,114.64,86.95996779]
[1741653204019,47.28251253,114.71,114.7,86.95996779]
[1741653204323,47.28251253,114.71,114.62,86.95996779]
[1741653204525,47.28251253,114.71,114.61,158.0602762]